[Event "Czech Open-Rapid 2022"]
[Site "Pardubice"]
[Date "2022.07.20"]
[Round "3.17"]
[White "Meszaros, Ludek"]
[Black "Seger, Ruediger"]
[Result "1/2-1/2"]
[ECO "B10"]
[WhiteElo "2049"]
[BlackElo "2299"]
[Annotator "TA"]
[PlyCount "64"]
[EventDate "2022.07.20"]
[EventType "swiss"]
[EventCountry "CZE"]
[SourceTitle "playchess.com"]
[Source "ChessBase"]
[SourceQuality "1"]
[TimeControl "1200+10"]

{[%evp 9,64,0,0,0,13,11,0,23,14,0,0,-55,-16,-20,-26,-16,0,0,0,0,7,-44,-29,-60,-32,-31,-30,-29,-25,-38,-48,-55,-54,-54,-32,-43,-50,-62,-66,-187,-21,-27,0,0,0,0,0,-8,-8,-8,-8,-8,0,0,37,32,36]} 1. e4 c6 2. Ne2 d5 3. e5 c5 4. d4 Nc6 5. c3 cxd4 6. cxd4 {B12: Caro-Kann: Advance Variation.} Bf5 7. Nbc3 e6 8. Ng3 {The position is equal.} Bg6 9. h4 h5 10. Bd3 (10. Be3 $11) 10... Bxd3 $15 11. Qxd3 Be7 {[#]} 12. Nge2 $146 ({Predecessor:} 12. Be3 a6 13. O-O-O g6 14. Nge2 Nh6 15. Bxh6 Rxh6 16. g3 Kf8 17. Kb1 Kg7 18. Nf4 {1-0 (39) Safarli,E (2678)-Izoria,Z (2589) Chess.com INT 2016}) 12... Nh6 13. Bxh6 Rxh6 14. g3 Rc8 15. O-O-O ({White should play} 15. Kf1 $11) 15... Nb4 16. Qb5+ Qd7 {[#] Hoping for ...Qxb5.} 17. Qxd7+ Kxd7 18. Kb1 Rhh8 19. a3 Nc6 20. Rc1 Na5 21. Ka2 Nc4 22. Rhd1 Rc6 23. Nb1 Rhc8 24. b3 {[#]} (24. Rc3 $15) 24... Na5 $2 ({Black should try} 24... Nxe5 $1 $19 {[%mdl 512] aiming for ...Rc2+.} 25. Rxc6 Rxc6) 25. Rxc6 (25. Kb2 {is more complex.} b5 26. Nd2 b4 27. a4) 25... bxc6 26. Nd2 Nb7 27. b4 {Against c5} a5 28. Kb3 Rb8 29. Kc3 axb4+ 30. axb4 Ra8 {Prevents Ra1.} 31. Rb1 g6 32. Nc1 Ra3+ {Weighted Error Value: White=0.15 (very precise) /Black=0.13 (very precise)} 1/2-1/2

[Event "Czech Open-Rapid 2022"]
[Site "Pardubice"]
[Date "2022.07.20"]
[Round "3.18"]
[White "Mojzis, Jaroslav"]
[Black "Krak, Tomas"]
[Result "1-0"]
[ECO "E65"]
[WhiteElo "2108"]
[BlackElo "2312"]
[Annotator "TA"]
[PlyCount "129"]
[EventDate "2022.07.20"]
[EventType "swiss"]
[EventCountry "CZE"]
[SourceTitle "playchess.com"]
[Source "ChessBase"]
[SourceQuality "1"]
[TimeControl "1200+10"]

{[%evp 19,129,23,31,0,4,-28,-31,-24,7,-25,-26,-49,-6,-11,14,12,25,12,44,16,33,7,37,38,40,45,49,0,86,0,22,0,0,0,0,0,0,0,0,0,0,0,0,0,44,42,43,60,47,34,31,0,0,-31,0,0,0,0,27,10,16,14,44,15,16,18,16,0,0,0,0,0,0,0,72,0,8,8,90,86,170,200,188,34,496,496,496,458,496,496,434,63,496,496,496,496,496,496,856,776,29964,29965,29965,29965,29961,29962,29971,29972,29972,29973,29984,5102]} 1. Nf3 {[%emt 0:00:02]} Nf6 {[%emt 0:00:01]} 2. g3 {[%emt 0:00:02]} g6 {[%emt 0:00:05]} 3. Bg2 {[%emt 0:00:01]} Bg7 {[%emt 0:00:01]} 4. O-O {[%emt 0:00:03]} O-O {[%emt 0:00:10]} 5. d4 {[%emt 0:00:04]} d6 {[%emt 0:00:01]} 6. c4 {[%emt 0:00:02]} c5 {[%emt 0:00:10]} 7. Nc3 {[%emt 0:00:07]} cxd4 {[%emt 0:00:37]} 8. Nxd4 {[%emt 0:00:03][%cal Bf3d4,Bd4c2,Bc2e3][%mdl 32]} Nc6 {[%emt 0:00:03]} 9. Nc2 {[%emt 0:00:54]} Qa5 {[%emt 0:00:57]} 10. Bd2 {[%emt 0:00:08]} Qh5 {[%emt 0:00:07]} 11. Ne3 {[%emt 0:02:08] A38: Symmetrical English vs ...g6: 4 Bg2 Bg7 5 Nf3 Nf6.} (11. e4 {seems wilder.} Bg4 12. f3 Bh3 13. Qe2) 11... Bh3 {[%emt 0:00:36] [#]} 12. Ncd5 $146 {[%emt 0:01:14]} (12. Bf3 $5 {[%cal Rf3h5]} Qc5 13. Re1 $11) ({Predecessor:} 12. Bf3 Ng4 13. Ncd5 Nxe3 14. Bxe3 Qe5 15. Re1 e6 16. Nf4 Bf5 17. Nd3 Bxd3 18. exd3 Qxb2 {½-½ (33) Markus,R (2599)-Ruck,R (2530) Slovenia 2019}) 12... Bxg2 {[%emt 0:03:02]} 13. Kxg2 {[%emt 0:00:02] Black is slightly better.} Ng4 {[%emt 0:00:57]} 14. h3 {[%emt 0:02:58]} Nxe3+ {[%emt 0:00:18]} 15. Bxe3 {[%emt 0:00:11]} Qe5 {[%emt 0:01:57]} ({Don't play} 15... Bxb2 16. Rb1 Bg7 17. Rxb7 $14) (15... e6 $5 {[%cal Re6d5]} 16. Nc3 Bxc3 17. bxc3 Rad8 $15) 16. Qc2 {[%emt 0:01:17]} Rab8 {[%emt 0:01:35]} 17. Rab1 {[%emt 0:00:17]} Qe6 {[%emt 0:01:07]} 18. b3 {[%emt 0:00:31]} Rfc8 {[%emt 0:00:38]} 19. Qd3 {[%emt 0:01:45]} b6 {[%emt 0:02:11]} 20. Rfe1 {[%emt 0:00:40]} Ne5 {[%emt 0:00:39]} (20... Qd7 $5 {[%cal Re7e6]}) 21. Qd2 {[%emt 0:02:45]} Nc6 {[%emt 0:00:36]} 22. f3 {[%emt 0:01:26]} b5 {[%emt 0:01:35]} 23. Rec1 {[%emt 0:01:26]} (23. Rbc1 $14 {might be stronger.}) 23... Qd7 {[%emt 0:02:40]} (23... bxc4 $1 $11 {keeps the balance.} 24. g4 cxb3 25. Rxb3 Rxb3 26. axb3 Qd7) 24. Rc2 {[%emt 0:01:08] White is more active.} (24. cxb5 $16 Rxb5 25. Bg5) 24... e6 {[%emt 0:00:16]} 25. Nf4 {[%emt 0:00:11]} bxc4 {[%emt 0:00:21]} 26. Rxc4 {[%emt 0:00:07]} d5 {[%emt 0:00:30]} 27. Rc2 {[%emt 0:00:17]} Ne7 {[%emt 0:00:48]} 28. Rbc1 {[%emt 0:00:12]} Rxc2 {[%emt 0:00:03]} 29. Rxc2 {[%emt 0:00:09]} e5 {[%emt 0:01:18] And now ...d4 would win.} 30. Nd3 {[%emt 0:00:03]} d4 {[%emt 0:00:22]} 31. Bf2 {[%emt 0:00:41]} Rc8 {[%emt 0:00:34]} 32. Rxc8+ {[%emt 0:01:05]} Qxc8 {[%emt 0:00:02]} 33. Qa5 {[%emt 0:00:24][%csl LRa7,LRe5] Inhibits Nd5.} Nc6 {[%emt 0:00:13]} 34. Qc5 {Black must now prevent Nb4.} Qe6 35. Qc2 {[%emt 0:01:09]} Bf8 {[%emt 0:00:38]} 36. Nc5 {[%emt 0:00:30]} Qd5 {[%emt 0:00:32]} 37. Ne4 {[%emt 0:00:10] aiming for Nf6+.} Be7 {[%emt 0:00:03] Inhibits Nf6+.} 38. g4 {[%emt 0:00:17]} Kg7 {[%emt 0:00:31]} 39. Be1 {[%emt 0:00:44]} h6 {[%emt 0:00:01]} 40. Bd2 {[%emt 0:00:03]} a6 {[%emt 0:00:09]} 41. Qd3 {[%emt 0:00:10]} (41. Qc1 {is interesting.} h5 42. Bh6+ Kg8 43. gxh5 Qe6 44. Bg5) 41... Qb5 {[%emt 0:00:04]} 42. Qxb5 {[%emt 0:00:30]} axb5 $11 {[%emt 0:00:01][%mdl 4096] Endgame KBN-KBN} 43. a4 {[%emt 0:00:22]} bxa4 {[%emt 0:00:01]} 44. bxa4 {[%emt 0:00:01]} f5 {[%emt 0:00:07]} 45. gxf5 {[%emt 0:00:01]} gxf5 {[%emt 0:00:01]} 46. Nf2 {[%emt 0:00:11]} Bg5 {[%emt 0:00:27] [#]} (46... Bd8 $11) 47. Be1 {[%emt 0:00:17]} (47. f4 $1 $16 {[%cal Rf4g5]} exf4 48. Be1) 47... Kf6 {[%emt 0:00:09]} 48. Nd3 {[%emt 0:00:10][%cal Of3f4]} Ke6 {[%emt 0:00:09] [#]} (48... e4 $1 $11 49. Nb4 Nxb4 50. Bxb4 Ke5) 49. f4 $1 $16 {[%emt 0:00:32]} Bxf4 {[%emt 0:00:43]} (49... exf4 $16 50. a5 Kd7) 50. Nxf4+ $18 {[%emt 0:00:02]} exf4 $16 {[%emt 0:00:01] KB-KN} 51. Kf3 $2 {[%emt 0:00:06]} (51. a5 $18) 51... d3 $2 {[%emt 0:00:13][%mdl 8192]} ({Black should try} 51... Ne5+ $1 $14 52. Kxf4 d3) 52. exd3 $18 {[%emt 0:00:21] Strongly threatening Bc3.} Ne5+ {[%emt 0:00:02]} 53. Ke2 {[%emt 0:00:05]} f3+ {[%emt 0:00:07]} 54. Ke3 {[%emt 0:00:10]} Kd5 {[%emt 0:00:07][%cal Of5f4]} 55. Bc3 $2 {[%emt 0:00:11]} (55. Bg3 $18 {Hoping for Bxe5.} Nc6 56. Kxf3) 55... f4+ $2 {[%emt 0:00:04][%mdl 8192]} (55... f2 $1 $14 56. Kxf2 Nxd3+ 57. Kf3 Nc5) 56. Kf2 {[%emt 0:00:21] Threatens to win with Bxe5.} Nxd3+ {[%emt 0:00:06]} 57. Kxf3 {[%emt 0:00:03]} h5 {[%emt 0:00:09]} 58. Bd2 {[%emt 0:00:14]} Ke5 {[%emt 0:00:25]} (58... Nc5 $142 59. a5 (59. Kxf4 Nxa4 60. h4 Nc5 $11) 59... Kc6 60. Bxf4 Kb5) 59. a5 {[%emt 0:00:01][%cal Ba4a5,Ba5a6][%mdl 32] White wants to mate with a6.} Kf5 {[%emt 0:00:01]} 60. a6 {[%emt 0:00:04] White mates.} Ne5+ {[%emt 0:00:03]} 61. Kf2 {[%emt 0:00:06]} Nc6 {[%emt 0:00:12] [#]} 62. Bb4 $1 {[%emt 0:00:09][%mdl 512]} Kg5 {[%emt 0:00:15]} (62... Nxb4 63. a7) 63. Bc5 {[%emt 0:00:06]} Kh4 {[%emt 0:00:05]} 64. Kg2 {[%emt 0:00:02]} f3+ {[%emt 0:00:01]} 65. Kh2 {[%emt 0:00:08] Weighted Error Value: White=0.29 (precise) /Black=0.56} (65. Kxf3 $142 Kg5 66. Ke4 Kf6 67. Kd5 Nd8 68. a7 Ne6 69. Bd6 Kf5 70. a8=Q) 1-0

[Event "Czech Open-Rapid 2022"]
[Site "Pardubice"]
[Date "2022.07.20"]
[Round "3.19"]
[White "Savitha Shri B"]
[Black "Jurek, Josef"]
[Result "1-0"]
[ECO "C03"]
[WhiteElo "2278"]
[BlackElo "2200"]
[Annotator "TA"]
[PlyCount "55"]
[EventDate "2022.07.20"]
[EventType "swiss"]
[EventCountry "CZE"]
[SourceTitle "playchess.com"]
[Source "ChessBase"]
[SourceQuality "1"]
[TimeControl "1200+10"]

{[%evp 19,55,0,0,-54,-62,-70,-93,-66,-37,-39,-55,-138,-19,-33,10,11,345,357,329,342,467,497,504,497,868,890,1233,1248,1372,1354,1748,907,1993,1591,29987,29988,29988,29989]} 1. e4 {[%emt 0:00:04]} e6 {[%emt 0:00:04]} 2. d4 {[%emt 0:00:10]} d5 {[%emt 0:00:03]} 3. Nd2 {[%emt 0:00:01]} Be7 {[%emt 0:00:13]} 4. Ngf3 {[%emt 0:00:06]} Nf6 {[%emt 0:00:08]} 5. e5 {[%emt 0:00:01]} Nfd7 {[%emt 0:00:03]} 6. c3 {[%emt 0:00:09]} c5 {[%emt 0:00:04]} 7. Bd3 {[%emt 0:00:02]} Nc6 {[%emt 0:00:13]} 8. O-O {[%emt 0:00:37]} a5 {[%emt 0:00:01]} 9. Re1 {[%emt 0:00:41] 9.a4 injects fresh life into this line.} cxd4 {[%emt 0:00:08]} 10. cxd4 {[%emt 0:00:42]} Qb6 {[%emt 0:00:02]} 11. Nf1 {[%emt 0:01:34] C06: French Tarrasch: 3...Nf6 4 e5 Nfd7 5 Bd3 main lines.} (11. a4 $11) 11... Nxd4 $15 {[%emt 0:00:11]} 12. Nxd4 {[%emt 0:00:18]} Qxd4 {[%emt 0:00:03]} 13. Ng3 {[%emt 0:00:03] [#] Black is better.} h5 $146 {[%emt 0:01:24]} ({Much weaker is} 13... Bc5 14. Be3 Qb4 15. a3) (13... Bb4 $5 {[%cal Rb4e1]} 14. Re3 (14. Bb5 Qb6 $17) 14... Bc5 $17) ({Predecessor:} 13... Bc5 14. Qc2 b6 15. a3 Qh4 16. Bd2 O-O 17. b4 axb4 18. axb4 Rxa1 19. Rxa1 Bxf2+ {0-1 (19) Lundin,J (2300)-Farago,I (2531) Deizisau 2007}) 14. Be3 {[%emt 0:06:18]} ({But not} 14. Bb5 Qxd1 15. Rxd1 h4 $17) 14... Qxe5 {[%emt 0:01:00]} 15. f4 {[%emt 0:00:26]} (15. Bb5 $15) 15... Qf6 {[%emt 0:01:04]} ({Black should play} 15... Qxb2 $17 {aiming for ...h4.} 16. Rb1 Qf6) 16. Nxh5 {[%emt 0:00:34]} Qh4 {[%emt 0:01:15]} (16... Qh6 $5 {[%cal Rh6h5]} 17. g4 O-O $15) 17. Be2 {[%emt 0:00:09] Active counter play!} g6 $2 {[%emt 0:00:49][%mdl 8192] [#] Loses the game.} (17... Bb4 $1 $11 {and Black is okay.} 18. Bf2 Qe7 19. Nxg7+ Kf8) 18. g3 $1 $18 {[%emt 0:00:07]} Qh3 {[%emt 0:01:04]} 19. Bg4 {[%emt 0:00:06]} Rxh5 {[%emt 0:01:21]} 20. Bxh3 {[%emt 0:00:02]} Rxh3 {[%emt 0:00:01]} 21. Rc1 {[%emt 0:00:08]} b5 {[%emt 0:02:52]} (21... Rh8 $142 22. Bd4 Rh5) 22. Qc2 {[%emt 0:01:15]} Bb4 {[%emt 0:01:26]} 23. Qc6 {[%emt 0:00:57][%csl LRa8,LRb5]} Rb8 {[%emt 0:00:48]} 24. Ba7 {[%emt 0:00:26][%csl LRb8,LRd5][%cal Be3a7,Ba7b8,Bb8d6][%mdl 32]} Bb7 {[%emt 0:00:29]} 25. Qc7 {[%emt 0:00:06]} Bxe1 {[%emt 0:01:15]} 26. Bxb8 {[%emt 0:00:02]} Bd2 {[%emt 0:00:37] [#]} 27. Qxb7 $1 {[%emt 0:00:03]} Bxc1 {[%emt 0:00:23]} (27... Rxg3+ 28. hxg3) 28. Bd6 {[%emt 0:00:02] Weighted Error Value: White=0.15 (very precise) /Black=1.21} 1-0

[Event "Czech Open-Rapid 2022"]
[Site "Pardubice"]
[Date "2022.07.20"]
[Round "3.20"]
[White "Brejnik, Gustav"]
[Black "Kraus, Ondrej"]
[Result "0-1"]
[ECO "A61"]
[WhiteElo "2292"]
[BlackElo "1993"]
[Annotator "TA"]
[PlyCount "78"]
[EventDate "2022.07.20"]
[EventType "swiss"]
[EventCountry "CZE"]
[SourceTitle "playchess.com"]
[Source "ChessBase"]
[SourceQuality "1"]
[TimeControl "1200+10"]

{[%evp 18,77,50,29,135,131,175,167,166,84,85,98,97,104,101,84,72,64,81,82,149,75,127,29,38,13,55,-15,-15,-99,-1,-16,-20,-77,-71,-127,-135,-135,-141,-105,-104,-92,-94,-108,0,-160,-152,-433,-425,-434,-410,-29979,-29980,-29980,-29981,-29981,-29982,-29996,-29997,-29998,-29999,-29999]} 1. d4 {[%emt 0:00:02]} Nf6 {[%emt 0:00:21]} 2. c4 e6 {[%emt 0:00:11]} 3. Nf3 {[%emt 0:00:06][%cal Bg1f3,Bf3d2,Bd2c4][%mdl 32]} c5 {[%emt 0:00:23]} 4. d5 {[%emt 0:00:02]} exd5 {[%emt 0:00:05]} 5. cxd5 {[%emt 0:00:00]} d6 {[%emt 0:00:01]} 6. Nc3 {[%emt 0:00:02]} g6 {[%emt 0:00:02]} 7. Nd2 {[%emt 0:00:02]} Bg7 {[%emt 0:00:26]} 8. e4 {[%emt 0:00:01]} O-O {[%emt 0:00:15]} 9. Be2 {[%emt 0:00:01]} Nbd7 {[%emt 0:01:21]} 10. O-O {[%emt 0:00:04]} g5 {[%emt 0:03:33] A73: Modern Benoni: Classical: Unusual Black 9th moves.} (10... Re8 $11 {keeps the balance.}) 11. Nc4 $16 {[%emt 0:00:24][%csl LRd6,LRg5] [#]} b5 $146 {[%emt 0:02:29]} ({Predecessor:} 11... Ne8 12. Bg4 Ne5 13. Bxc8 Nxc4 14. Bf5 Ne5 15. Ne2 c4 16. Be3 Nd3 17. Rb1 h6 18. b3 {1-0 (37) Dydyshko,V (2545)-Doghri,N (2350) Yerevan 1996}) 12. Nxb5 {[%emt 0:01:22]} Nxe4 {[%emt 0:01:01] White is clearly better.} 13. Nbxd6 {[%emt 0:00:32]} (13. f3 $18 Nef6 14. Bxg5 (14. Nbxd6 Nb6 $16)) 13... Nxd6 {[%emt 0:02:06]} 14. Nxd6 {[%emt 0:00:02]} Nb6 {[%emt 0:00:30]} 15. Nxc8 {[%emt 0:03:16]} Rxc8 {[%emt 0:00:23]} 16. Bf3 {[%emt 0:00:24]} Bd4 {[%emt 0:00:30]} 17. Qb3 {[%emt 0:01:33]} f5 {[%emt 0:01:56]} 18. h3 {[%emt 0:00:54] Inhibits g4.} h6 {[%emt 0:00:39]} (18... Rb8 $142) 19. a4 {[%emt 0:00:27]} (19. Be3 $142) 19... Qd6 {[%emt 0:01:00]} (19... Rb8 $142) 20. a5 {[%emt 0:00:09]} (20. Re1 $1 $16 {[%cal Re1e6]}) 20... Nd7 $11 {[%emt 0:00:04][%cal Bb6d7,Bd7e5,Be5c4][%mdl 32]} 21. Ra4 {[%emt 0:02:56]} (21. Be3 $5 {[%cal Re3d4]}) 21... Rb8 {[%emt 0:01:03]} 22. Qa2 {[%emt 0:01:10]} (22. Qa3 $1 $14 Qg6 23. Be3 Bxb2 24. Qd3) 22... Ne5 {[%emt 0:00:37]} 23. Be2 {[%emt 0:00:09] [#]} (23. Bh5 $11) 23... Rfd8 {[%emt 0:00:50] Black is much more active. The white rooks are badly placed.} ({Better is} 23... f4 $1 $17 {[%cal Rf4f3] White must now prevent ...f3.} 24. Ra3 Kg7) 24. Qb1 {[%emt 0:02:50]} f4 $36 {[%emt 0:00:26][%mdl 2048] Black fights for an advantage.} 25. Qf5 {[%emt 0:01:50]} (25. b4 $1 $11 {remains equal.}) 25... Qxd5 $17 {[%emt 0:00:44][%cal Oe5f3]} (25... Rd7 {is interesting.} 26. Qe6+ Kg7 27. Rd1 Qxd5 28. Qxd5 Rxd5 29. Kf1 Rdd8) 26. Bc4 {[%emt 0:01:38]} Nxc4 {[%emt 0:00:05] Chess con chili.} 27. Qxd5+ {[%emt 0:00:01]} Rxd5 {[%emt 0:00:02]} 28. Rxc4 {[%emt 0:00:02]} Bxb2 {[%emt 0:00:20]} 29. Bxb2 {[%emt 0:00:37]} Rxb2 {[%emt 0:00:03][%mdl 4096] Endgame KRR-KRR} 30. Re1 {[%emt 0:00:12]} Rdd2 {[%emt 0:00:39]} (30... Kf7 $17 {aiming for ...Rdd2.} 31. Rce4 Rd7) 31. Rxc5 $2 {[%emt 0:00:02]} (31. Rce4 $1 $11) 31... Rxf2 {[%emt 0:00:12]} 32. Rc8+ $2 {[%emt 0:00:07] This move loses the game for White.} (32. Re7 $17 Rxg2+ 33. Kf1 Rbf2+ 34. Ke1) 32... Kf7 $19 {[%emt 0:00:05]} 33. Rc7+ {[%emt 0:00:02] [#]} Kg6 $1 {[%emt 0:00:08]} 34. Rc6+ {[%emt 0:00:46]} (34. g4 $19 fxg3 35. Rc6+ Kh5 36. a6) 34... Kh5 {[%emt 0:00:15] Black mates.} 35. Ree6 {[%emt 0:00:02]} Rxg2+ {[%emt 0:00:24]} 36. Kf1 {[%emt 0:00:01]} Kh4 {[%emt 0:00:18]} 37. Rxh6+ {[%emt 0:00:02]} Kg3 {[%emt 0:00:04]} 38. Rc1 Rbf2+ {[%emt 0:00:05]} 39. Ke1 {[%emt 0:00:55]} Rg1# {Weighted Error Value: White=0.71/Black=0.32} 0-1

[Event "Czech Open-Rapid 2022"]
[Site "Pardubice"]
[Date "2022.07.20"]
[Round "3.21"]
[White "Koska, Jiri"]
[Black "Akesson, Ralf"]
[Result "0-1"]
[ECO "A05"]
[WhiteElo "1856"]
[BlackElo "2427"]
[Annotator "TA"]
[PlyCount "124"]
[EventDate "2022.07.20"]
[EventType "swiss"]
[EventCountry "CZE"]
[SourceTitle "playchess.com"]
[Source "ChessBase"]
[SourceQuality "1"]
[TimeControl "1200+10"]

{[%evp 9,123,5,12,-9,-2,-21,-21,-33,11,-22,-26,-15,-23,-42,-43,-39,-9,-27,-19,-19,-13,-23,-22,-28,-20,-23,-2,-27,-22,-20,-12,-26,10,14,14,0,18,16,23,11,11,8,11,8,8,0,0,-16,-12,-33,-21,-19,-20,-46,-19,-29,-7,-27,-27,-35,18,11,34,8,10,14,60,22,84,84,84,70,84,60,91,62,84,0,67,0,126,30,40,0,52,0,0,0,0,-147,0,0,0,-7,8,-490,-462,-817,-100,-260,-192,-193,-197,-182,-43,-43,-43,-43,-46,-51,-43,-51,-24,-447,-426,-29999]} 1. Nf3 {[%emt 0:00:03]} Nf6 {[%emt 0:00:05]} 2. g3 {[%emt 0:00:01]} b5 {[%emt 0:00:11]} 3. Bg2 {[%emt 0:00:14]} Bb7 {[%emt 0:00:02]} 4. O-O {[%emt 0:00:02]} e6 {[%emt 0:00:05]} 5. d4 {[%emt 0:00:38]} c5 {[%emt 0:00:16]} 6. e3 {[%emt 0:00:09] A46: 1 d4 Nf6 2 Nf3 e6: Torre, London and Colle Systems.} Be7 {[%emt 0:00:12]} 7. Nbd2 {[%emt 0:00:34][%cal Oe3e4]} O-O {[%emt 0:00:12]} 8. dxc5 {[%emt 0:02:53] [#] The position is equal.} Na6 $146 {[%emt 0:00:50]} ({Predecessor:} 8... Bxc5 9. b3 d5 10. Bb2 Nbd7 11. Nd4 b4 12. Re1 Qb6 13. c4 bxc3 14. Bxc3 Rac8 {0-1 (42) Kiselev,A (2250)-Reshetnikov,A Smolensk 2001}) 9. Nb3 {[%emt 0:00:35]} (9. Nd4 $5 {[%cal Rg2b7]} Qc8 10. Bxb7 Qxb7 11. Qf3 Qxf3 12. N2xf3 $11) 9... Nxc5 {[%emt 0:00:07]} 10. Nxc5 {[%emt 0:00:15]} Bxc5 {[%emt 0:00:03]} 11. Bd2 {[%emt 0:00:08]} Ne4 {[%emt 0:00:21]} 12. a3 {[%emt 0:00:47]} Qe7 {[%emt 0:01:07]} 13. Qe1 {[%emt 0:01:58]} Nxd2 {[%emt 0:00:19]} 14. Qxd2 {[%emt 0:00:01]} Rfc8 {[%emt 0:00:41]} 15. Rfd1 {[%emt 0:00:57]} d5 {[%emt 0:00:15]} (15... Qf6 {keeps more tension.} 16. Nd4 Bxg2 17. Kxg2 Bxd4 18. exd4 Qf5) 16. Nd4 {[%emt 0:01:02]} a6 {[%emt 0:00:17]} 17. c3 {[%emt 0:00:49]} Rab8 {[%emt 0:01:22]} 18. Rac1 {[%emt 0:02:17]} g6 {[%emt 0:00:18]} 19. Qe2 {[%emt 0:00:45]} Rd8 {[%emt 0:00:53]} 20. Nb3 {[%emt 0:03:34]} f5 {[%emt 0:01:46]} 21. Nxc5 {[%emt 0:00:30]} Qxc5 {[%emt 0:00:02]} 22. Qd3 {[%emt 0:00:03]} Rbc8 {[%emt 0:00:14]} 23. Qd4 {[%emt 0:00:08]} Kf7 {[%emt 0:00:25]} 24. Rd2 {[%emt 0:00:51]} Qe7 {[%emt 0:00:35]} 25. Qe5 {[%emt 0:00:32]} (25. f4 {feels hotter.} Rc4 26. Qe5 Qf6 27. Qxf6+ Kxf6 28. Kf2) 25... Qf6 {[%emt 0:00:18]} (25... Rc5 {keeps more tension.} 26. Rd4 h5 27. Rcd1 Qf6) 26. Qxf6+ {[%emt 0:00:21]} (26. Qf4 {is interesting.} g5 27. Qd4 Qe7 28. Bf1) 26... Kxf6 {[%emt 0:00:02]} 27. Rdc2 {[%emt 0:00:53]} g5 {[%emt 0:00:23]} 28. Re2 {[%emt 0:00:36]} h5 {[%emt 0:00:10]} 29. f4 {[%emt 0:01:01]} Rg8 {[%emt 0:00:35]} 30. Kf2 {[%emt 0:00:26]} h4 {[%emt 0:00:15]} 31. Rce1 {[%emt 0:00:22]} Rc7 {[%emt 0:00:22]} 32. gxh4 {[%emt 0:00:37]} gxh4 {[%emt 0:02:11]} 33. Bh3 {[%emt 0:00:18]} Rcg7 {[%emt 0:00:04]} 34. Kf1 {[%emt 0:00:26]} e5 {[%emt 0:02:26]} (34... a5 $15) 35. fxe5+ $11 {[%emt 0:00:39]} Kxe5 {[%emt 0:00:03]} 36. Rf2 {[%emt 0:00:01]} Bc8 {[%emt 0:00:28]} 37. Ke2 {[%emt 0:00:05]} Be6 {[%emt 0:01:37]} (37... Rg1 $11 {is more appropriate.}) 38. Ref1 {[%emt 0:00:19]} (38. Rf4 $5 {[%cal Rf4h4]}) 38... Rg5 {[%emt 0:00:28]} (38... a5 $11) 39. Rf4 $16 {[%emt 0:00:08]} Rh5 {[%emt 0:00:12]} 40. Ke1 {[%emt 0:00:24]} a5 {[%emt 0:00:17]} 41. Kd2 {[%emt 0:00:03]} Rb8 {[%emt 0:00:52]} 42. Rd4 {[%emt 0:00:25]} Rg8 {[%emt 0:01:36]} 43. Rdf4 {[%emt 0:00:01]} (43. Kc2 $16) 43... Bd7 {[%emt 0:00:34]} ({Black should play} 43... Rb8 $1 $11) 44. Rd4 {[%emt 0:00:18]} (44. Rd1 $14) 44... Rh6 {[%emt 0:00:50]} (44... Be6 $1 $11 {keeps the balance.}) 45. Rff4 {[%emt 0:00:11]} (45. e4 $16 Rd6 46. exf5) 45... Rg1 $1 $11 {[%emt 0:00:29]} 46. Rxh4 {[%emt 0:00:01]} (46. Rf2 $5 {[%cal Re3e4]}) 46... Rhg6 {[%emt 0:00:02]} (46... Rxh4 $11 47. Rxh4 Rb1) 47. Rhf4 {[%emt 0:00:05]} ({Better is} 47. Kc2 $1 $14) 47... Rb1 {[%emt 0:00:05]} 48. Kc2 {[%emt 0:00:01]} Rgg1 {[%emt 0:00:12]} 49. Rd2 {[%emt 0:00:02]} (49. Bg2 $1 $11) 49... Rbc1+ {[%emt 0:00:46]} (49... Rgc1+ $17 50. Kd3 b4) 50. Kb3 {[%emt 0:00:15]} Be6 {[%emt 0:01:03]} 51. Rfd4 {[%emt 0:00:04]} Rce1 {[%emt 0:00:09]} 52. R2d3 $2 {[%emt 0:00:41][%mdl 8192]} (52. Bg2 $11 {and White is okay.}) 52... Re2 $19 {[%emt 0:00:20]} 53. Rd2 {[%emt 0:00:04]} (53. a4 $142 bxa4+ 54. Kxa4 Rxh2 55. Bxf5 Ra1+ 56. Kb5 Rxb2+ 57. Kc5 Kxf5 58. Rh4) 53... Rxe3 $2 {[%emt 0:00:07]} (53... Rxd2 $19 {has better winning chances.} 54. Rxd2 d4+ 55. Kc2 dxe3) 54. R2d3 $2 {[%emt 0:00:21]} (54. Bg2 $17) 54... Rxd3 55. Rxd3 {[%emt 0:00:01][%mdl 4096] Endgame KRB-KRB} Rh1 {[%emt 0:00:30]} 56. Rd2 {[%emt 0:00:01] [#]} d4+ {[%emt 0:00:03]} (56... Rc1 $1 $19 {( -> ...d4+)} 57. Rd4 a4+ 58. Kb4 Rc2 59. Kxb5 Rxh2) 57. Kc2 $15 {[%emt 0:00:02]} dxc3 {[%emt 0:00:09]} 58. Kxc3 {[%emt 0:00:01]} Re1 {[%emt 0:00:20] And now ...Bc4 would win.} 59. Bg2 {[%emt 0:00:24]} f4 {[%emt 0:00:07]} 60. Bf3 {[%emt 0:00:10]} Rf1 {[%emt 0:00:45]} 61. Be2 {[%emt 0:00:18][%mdl 8192]} (61. Re2+ $11 {and White has nothing to worry.} Kf6 62. Bg2 Rc1+ 63. Rc2 b4+ 64. axb4 axb4+ 65. Kd2) 61... Rc1+ $19 {[%emt 0:00:03]} 62. Kd3 {[%emt 0:00:15] [#]} (62. Rc2 $19 b4+ 63. Kd2) 62... Bc4# {[%emt 0:00:06] Weighted Error Value: White=0.63/Black=0.33} 0-1